bitfinex-derivatives/quotes_ETHF0:USTF0_20250102
["timestamp","ask_amount","ask_price","bid_price","bid_amount"]
[1735843017987,40.8,3456.0,3455.9,3.49743]
[1735843018986,40.8,3456.0,3455.9,7.99738852]
[1735843020189,2.27400332,3456.4,3455.9,7.70775852]
[1735843020389,2.27400332,3456.4,3456.3,3.4974]
[1735843020592,2.56359332,3456.4,3456.3,3.2078]
[1735843021781,43.36359332,3456.4,3456.3,3.2078]
[1735843021982,43.36359332,3456.4,3456.3,3.4974]
[1735843021983,40.8,3456.4,3456.3,3.4974]
[1735843022184,41.08959,3456.4,3456.3,3.4974]
[1735843022886,40.8,3456.4,3456.3,3.4974]
[1735843023082,41.08959,3456.4,3456.3,3.4974]
[1735843024592,40.8,3456.4,3456.3,3.4974]
[1735843024780,41.08959,3456.4,3456.3,3.4974]
[1735843025990,43.36359332,3456.4,3456.3,3.4974]
[1735843026184,43.36359332,3456.4,3456.1,0.9291]
[1735843026389,0.28963,3456.0,3455.9,0.28963]
[1735843026690,0.28962,3456.1,3456.0,0.28962]
[1735843026891,5.48180332,3456.4,3456.1,0.28961]
[1735843027083,0.2896,3456.2,3456.1,0.28961]
[1735843027286,41.0896,3456.2,3456.1,0.28961]
[1735843027792,0.28962,3456.1,3456.0,0.28961]
[1735843028493,41.08961,3456.2,3456.1,0.28961]
[1735843028686,41.0896,3456.2,3456.1,0.28961]
[1735843029088,40.8,3456.2,3455.7,0.435]
[1735843029386,0.28962,3456.1,3456.0,0.28962]
[1735843029987,46.49801242,3456.2,3455.7,0.435]
[1735843030188,46.78762242,3456.2,3456.1,0.28961]
[1735843030787,40.8,3456.2,3456.1,0.28961]
[1735843033087,44.64961318,3456.2,3456.1,0.28961]
[1735843034891,44.50462091,3456.2,3456.1,0.28961]
[1735843035793,44.21502091,3456.2,3456.1,0.28961]
[1735843036393,44.50462091,3456.2,3456.1,0.28961]
[1735843037191,44.21502091,3456.2,3456.1,0.28961]
[1735843037895,44.64960704,3456.2,3456.1,0.28961]
[1735843038395,44.93920704,3456.2,3456.1,0.28961]
[1735843039196,41.52418613,3456.2,3456.1,0.28961]
[1735843040289,43.36696953,3456.2,3456.1,0.28961]
[1735843041192,43.07736953,3456.2,3456.1,0.28961]
[1735843041396,43.36696953,3456.2,3456.1,0.28961]
[1735843042599,0.28961,3456.1,3456.0,4.78957852]
[1735843042991,45.36036104,3456.2,3456.0,4.49995852]
[1735843043192,43.36697953,3456.2,3456.1,0.28961]
[1735843044600,44.5056643,3456.2,3456.1,0.28961]
[1735843046502,44.2160543,3456.2,3456.1,0.28961]
[1735843046693,44.5056543,3456.2,3456.1,0.28961]
[1735843047398,44.2160543,3456.2,3456.1,0.28961]
[1735843047996,44.6506394,3456.2,3456.1,0.28961]
[1735843048398,44.6506394,3456.2,3455.8,4.49995852]
[1735843048706,2.57261151,3456.1,3456.0,0.28961]
[1735843049199,3.7056743,3456.1,3456.0,0.28961]
[1735843050399,0.28962,3456.1,3456.0,0.28961]
[1735843051393,3.4160543,3456.1,3456.0,0.28961]
[1735843051593,2.0146543,3456.1,3456.0,0.28961]
[1735843051801,0.6130543,3456.1,3456.0,0.28961]
[1735843052803,0.28959,3456.4,3456.0,7.78818946]
[1735843053005,0.28959,3456.4,3456.1,0.28961]
[1735843053205,0.28958,3456.5,3456.1,0.28961]
[1735843053406,0.28959,3456.4,3456.1,0.28961]
[1735843053607,0.71059,3456.4,3456.1,0.28961]
[1735843054107,0.71059,3456.4,3456.2,4.5135271]
[1735843054407,0.71059,3456.4,3456.2,4.8031271]
[1735843054701,0.421,3456.4,3456.2,4.8031271]
[1735843054908,0.71059,3456.4,3456.2,4.9555271]
[1735843055098,0.421,3456.4,3456.2,5.2451271]
[1735843055294,0.421,3456.4,3456.2,0.442]
[1735843055498,0.28961,3456.2,3456.0,4.8031471]
[1735843055707,0.462,3456.1,3456.0,4.8031471]
[1735843056002,2.70399151,3456.4,3456.2,0.2896]
[1735843056300,2.57258151,3456.4,3456.1,0.28961]
[1735843056503,2.57258151,3456.4,3456.0,4.5135271]
[1735843056504,0.4334,3456.3,3456.0,4.5135271]
[1735843056706,2.27798429,3456.1,3456.0,0.28962]
[1735843058003,2.27798429,3456.1,3456.0,4.8031471]
[1735843060912,43.07798429,3456.1,3456.0,4.8031471]
[1735843062609,45.3609758,3456.1,3456.0,4.5135271]
[1735843062906,45.3609758,3456.1,3455.9,4.5135271]
[1735843062907,0.28962,3456.0,3455.9,4.5135271]
[1735843063112,0.72572,3456.0,3455.9,4.5135271]
[1735843064115,10.8303201,3456.0,3455.9,0.28963]
[1735843064304,51.6303201,3456.0,3455.9,0.28963]
[1735843065515,41.23464641,3456.0,3455.9,0.28963]
[1735843071027,40.8,3456.0,3455.9,0.28963]
[1735843071617,41.08962,3456.0,3455.9,0.28963]
[1735843073319,40.8,3456.0,3455.9,0.28963]
[1735843073622,41.08962,3456.0,3455.9,0.28963]
[1735843073811,40.8,3456.0,3455.9,0.28963]
[1735843074018,41.08962,3456.0,3455.9,0.28963]
[1735843076018,40.8,3456.0,3455.9,0.28963]
[1735843076217,41.08962,3456.0,3455.9,0.28963]
[1735843076620,40.8,3456.0,3455.9,0.28963]
[1735843077211,41.08962,3456.0,3455.9,0.28963]
[1735843078019,40.8,3456.0,3455.9,0.28963]
[1735843078213,41.23461893,3456.0,3455.9,0.28963]
[1735843078418,41.52423893,3456.0,3455.9,0.28963]
[1735843080921,41.23461893,3456.0,3455.9,0.28963]
[1735843081923,40.8,3456.0,3455.9,0.28963]
[1735843083421,43.07794966,3456.0,3455.9,0.28963]
[1735843084633,40.8,3456.0,3455.9,0.28963]
[1735843085917,40.8,3456.0,3455.9,4.8031571]
[1735843087219,40.8,3456.0,3455.9,0.28963]
[1735843090126,40.8,3456.0,3455.8,6.76936787]
[1735843090328,2.71194055,3455.9,3455.8,7.05900787]
[1735843091132,0.4232,3455.9,3455.8,7.05900787]
[1735843091434,0.4232,3455.9,3455.8,4.80305904]
[1735843091934,0.71283,3455.9,3455.8,4.80305904]
[1735843092633,0.4232,3455.9,3455.8,4.80305904]
[1735843093425,43.07807314,3456.0,3455.8,4.51341904]
[1735843093639,43.07807314,3456.0,3455.9,0.28963]
[1735843094734,43.36769314,3456.0,3455.9,0.28963]
[1735843094929,43.07807314,3456.0,3455.9,0.28963]
[1735843095629,40.8,3456.0,3455.9,4.80304904]
[1735843099529,43.07807314,3456.0,3455.9,4.80304904]
[1735843101442,41.23458765,3456.0,3455.9,4.80304904]
[1735843106651,41.52420765,3456.0,3455.9,4.51341904]
[1735843106950,41.96050765,3456.0,3455.9,4.51341904]
[1735843107348,45.16830765,3456.0,3455.9,4.51341904]
[1735843108244,0.28963,3455.9,3455.8,4.51341904]
[1735843108444,3.00007055,3455.9,3455.8,4.51341904]
[1735843108944,43.80007055,3455.9,3455.8,4.51341904]
[1735843109248,43.80007055,3455.9,3455.8,4.80305904]
[1735843109641,43.80007055,3455.9,3455.8,4.51341904]
[1735843109837,43.9450282,3455.9,3455.7,0.28964]
[1735843110038,0.28964,3455.8,3455.7,0.28964]
[1735843110538,43.9450282,3455.9,3455.5,4.51341904]
[1735843110739,5.78619055,3455.6,3455.5,4.51341904]
[1735843111144,46.29654055,3455.6,3455.4,4.51341904]
[1735843111448,1.16776,3455.5,3455.4,4.51341904]
[1735843112148,41.96776,3455.5,3455.4,4.51341904]
[1735843112345,41.51506,3455.5,3455.4,4.80308904]
[1735843112543,46.50792742,3455.5,3455.4,0.28967]
[1735843113649,45.36593313,3455.5,3455.4,0.28967]
[1735843114345,44.65087313,3455.5,3455.4,0.28967]
[1735843115052,44.21628548,3455.5,3455.4,0.28967]
[1735843116441,43.07627181,3455.5,3455.4,0.28967]
[1735843116851,0.28967,3455.4,3455.3,0.73508]
[1735843118355,0.28967,3455.4,3455.3,0.4454]
[1735843119351,0.2897,3455.1,3455.0,4.51341904]
[1735843120152,1.1734,3455.1,3455.0,4.51341904]
[1735843120357,41.9734,3455.1,3455.0,4.51341904]
[1735843120559,0.28972,3454.8,3454.7,4.51341904]
[1735843120855,41.6837,3455.1,3454.7,4.51341904]
[1735843120856,0.28972,3454.9,3454.7,4.80314904]
[1735843121345,0.28972,3454.9,3454.8,0.72162]
[1735843121952,2.27627181,3455.0,3454.9,0.28971]
[1735843122155,2.27627181,3455.0,3454.9,0.75581]
[1735843123350,40.8,3455.1,3455.0,0.2897]
[1735843124057,41.0897,3455.1,3455.0,0.2897]
[1735843125155,40.8,3455.1,3455.0,0.2897]
[1735843128360,41.0897,3455.1,3455.0,0.2897]
[1735843128754,40.8,3455.1,3454.9,0.4661]
[1735843129059,0.2897,3455.0,3454.9,0.75581]
[1735843129459,0.2897,3455.0,3454.9,0.4661]
[1735843129653,0.2897,3455.0,3454.9,0.75581]
[1735843129959,0.2897,3455.0,3454.9,0.4661]
[1735843130159,41.0897,3455.1,3455.0,0.28971]
[1735843130556,0.28971,3455.0,3454.9,0.75581]
[1735843130757,40.8,3455.1,3454.8,0.4319]
[1735843130962,3.02725055,3454.9,3454.8,0.4319]
[1735843131667,0.28974,3454.6,3454.5,0.75224]
[1735843131961,0.28974,3454.6,3454.5,0.4625]
[1735843132551,41.08974,3454.6,3454.5,0.4625]
[1735843132957,43.37848055,3454.6,3454.5,0.9185]
[1735843134063,41.08974,3454.6,3454.5,1.20825]
[1735843134263,41.08974,3454.6,3454.5,0.9185]
[1735843136060,0.28977,3454.2,3454.1,0.28977]
[1735843136862,0.28977,3454.3,3454.2,0.28977]
[1735843137465,0.28977,3454.3,3454.0,0.8607]
[1735843137466,0.28978,3454.2,3454.1,0.28978]
[1735843138362,0.28981,3453.8,3453.7,4.51341904]
[1735843138563,0.28981,3453.8,3453.7,0.4437]
[1735843138761,0.28981,3453.7,3453.6,4.94431904]
[1735843138963,41.08981,3453.7,3453.6,4.51341904]
[1735843139969,44.29761,3453.7,3453.6,4.51341904]
[1735843140270,0.28986,3453.3,3453.1,0.73356]
[1735843141567,0.28985,3453.3,3453.2,0.28986]
[1735843141768,0.28985,3453.3,3453.1,0.73356]
[1735843142564,0.28985,3453.3,3453.2,0.28986]
[1735843142760,0.4231,3453.4,3453.1,0.4437]
[1735843142965,0.71294,3453.4,3453.2,0.28985]
[1735843143361,0.28985,3453.3,3453.1,0.73356]
[1735843143569,0.28985,3453.3,3453.1,0.4437]
[1735843143775,0.71294,3453.4,3453.2,0.28985]
[1735843144269,0.4231,3453.4,3453.2,0.28985]
[1735843144477,0.28985,3453.3,3453.2,0.28985]
[1735843144770,0.28985,3453.3,3453.1,0.4437]
[1735843144771,0.71294,3453.4,3453.3,0.28985]
[1735843144968,0.4231,3453.4,3453.2,0.28985]
[1735843145164,0.71295,3453.4,3453.2,0.28985]
[1735843145374,0.71294,3453.4,3453.3,0.28985]
[1735843146266,0.28985,3453.3,3453.2,0.28985]
[1735843146767,0.4231,3453.4,3453.1,0.4437]
[1735843146967,0.28985,3453.3,3453.2,0.28985]
[1735843147268,0.4231,3453.4,3453.2,0.28985]
[1735843147269,0.71295,3453.4,3453.2,0.28985]
[1735843147466,44.29762,3453.7,3453.6,0.28982]
[1735843147771,44.0078,3453.7,3453.6,0.28982]
[1735843147972,44.29761,3453.7,3453.6,0.28982]
[1735843148175,44.29761,3453.7,3453.1,0.4437]
[1735843148176,44.0078,3453.7,3453.1,0.4437]
[1735843148375,0.28983,3453.6,3453.5,0.28983]
[1735843148969,44.0078,3453.7,3453.6,0.28982]
[1735843149175,40.8,3453.7,3453.6,0.28982]
[1735843150076,40.8,3453.7,3453.4,3.2078]
[1735843150277,2.57858055,3453.5,3453.4,0.28984]
[1735843150473,0.28985,3453.4,3453.3,0.28984]
[1735843150671,0.28985,3453.3,3453.2,0.28985]
[1735843151171,2.28874055,3453.5,3453.1,0.4437]
[1735843151372,2.57860055,3453.2,3453.1,0.4437]
[1735843151770,43.37860055,3453.2,3453.1,0.4437]
[1735843152078,0.28986,3453.1,3453.0,3.2078]
[1735843152276,0.74206,3453.1,3453.0,3.2078]
[1735843153071,0.4522,3453.1,3452.6,1.3326]
[1735843153271,0.2899,3452.7,3452.6,1.6225]
[1735843153771,2.28874055,3452.9,3452.6,1.3326]
[1735843154278,40.8,3453.2,3453.1,0.28986]
[1735843161192,40.8,3453.2,3452.9,3.2078]
[1735843161490,2.57860055,3453.2,3453.0,0.28987]
[1735843161880,40.8,3453.1,3453.0,0.28987]
[1735843163485,40.8,3453.1,3452.9,3.2078]
[1735843163789,0.28987,3453.0,3452.9,3.49767]
[1735843164091,0.28987,3453.0,3452.9,3.2078]
[1735843164589,0.28987,3453.0,3452.9,3.49768]
[1735843165784,40.8,3453.1,3452.9,3.2078]
[1735843166081,40.8,3453.1,3453.0,0.28987]
[1735843166282,2.99140665,3453.9,3452.9,3.2078]
[1735843166288,0.4466,3453.7,3452.9,3.2078]
[1735843166488,2.26689665,3453.9,3453.8,0.28981]
[1735843166791,43.35669665,3453.9,3453.8,0.28981]
[1735843166982,43.06689665,3453.9,3453.8,0.28981]
[1735843167383,43.06689665,3453.9,3453.7,0.28981]
[1735843167581,43.35669665,3453.9,3453.8,0.28981]
[1735843167784,43.08874055,3453.9,3453.8,0.28981]
[1735843168185,43.37854055,3453.9,3453.8,0.28981]
[1735843168392,43.08874055,3453.9,3453.5,1.3401]
[1735843168889,40.8,3453.9,3453.6,0.28982]
[1735843169090,2.57856055,3453.7,3453.6,0.28982]
[1735843169286,2.57856055,3453.7,3452.9,1.91369]
[1735843169287,2.28874055,3453.7,3453.0,4.0826]
[1735843169485,2.28874055,3453.2,3453.1,0.28986]
[1735843169684,40.8,3453.2,3453.1,0.28986]
[1735843171886,3.2078,3454.0,3453.1,5.0]
[1735843172190,3.2078,3454.0,3453.9,0.2898]
[1735843172492,44.0078,3454.0,3453.9,0.2898]
[1735843174092,44.0078,3454.0,3453.8,0.2898]
[1735843174394,2.57854055,3453.9,3453.8,0.2898]
[1735843174591,0.28981,3453.8,3453.7,0.71561]
[1735843174890,0.28983,3453.6,3453.5,0.28983]
[1735843175092,0.73822,3453.7,3453.5,0.28983]
[1735843175486,40.8,3453.6,3453.5,0.28983]
[1735843176994,41.08982,3453.6,3453.5,0.28983]
[1735843178084,41.08982,3453.6,3453.3,0.4344]
[1735843178085,43.08874055,3453.6,3453.3,0.4344]
[1735843178290,0.437,3453.5,3453.4,0.28983]
[1735843178494,0.72683,3453.5,3453.4,0.28983]
[1735843179093,41.237,3453.5,3453.4,0.28983]
[1735843179294,41.23518311,3453.5,3453.4,0.28983]
[1735843181199,40.8,3453.5,3453.4,0.28983]
[1735843181692,40.8,3453.5,3453.4,3.49763]
[1735843183098,40.8,3453.5,3453.4,0.28983]
[1735843184497,40.8,3453.5,3453.3,7.19215826]
[1735843184697,0.28984,3453.4,3453.3,7.48199826]
[1735843185000,41.08983,3453.5,3453.4,0.28984]
[1735843185501,40.8,3453.5,3453.4,0.28984]
[1735843187400,40.8,3453.5,3453.4,10.25539826]
[1735843189107,40.8,3453.5,3453.4,3.49764]
[1735843191503,40.8,3453.5,3453.4,3.49764]
[1735843194005,40.8,3453.5,3453.4,10.28506755]
[1735843200414,43.37857055,3453.5,3453.4,6.78742755]
[1735843200619,43.37857055,3453.5,3453.4,2.96832755]
[1735843202009,0.28986,3453.2,3452.8,5.42523781]
[1735843202213,0.4463,3453.4,3452.8,5.42523781]
[1735843202416,2.57861055,3453.1,3453.0,0.28987]
[1735843202916,4.56712102,3453.1,3453.0,0.28987]
[1735843203219,0.28988,3452.9,3452.8,4.98583781]
[1735843203422,0.28988,3452.9,3452.8,5.27572781]
[1735843203821,40.8,3452.9,3452.8,5.27572781]
[1735843204113,41.08988,3452.9,3452.8,5.27572781]
[1735843204323,41.08988,3452.9,3452.8,0.4537]
[1735843204821,0.2899,3452.7,3452.6,4.53213781]
[1735843205026,2.57864055,3452.7,3452.6,4.53213781]
[1735843205215,7.57864055,3452.7,3452.6,3.82753781]
[1735843205415,48.08874055,3452.7,3452.1,9.01034435]
[1735843205620,3.49774,3452.2,3452.0,0.28995]
[1735843206019,3.2078,3452.2,3451.8,0.8468]
[1735843206319,2.28874055,3452.0,3451.8,0.8468]
[1735843206512,3.2078,3452.6,3451.8,3.13554055]
[1735843206717,3.2078,3452.6,3452.5,0.28992]
[1735843206917,3.2078,3452.6,3452.4,0.28992]
[1735843207116,2.28874055,3452.5,3452.4,0.28992]
[1735843207620,2.28874055,3452.5,3451.8,0.8468]
[1735843207621,6.84526944,3452.5,3451.8,0.8468]
[1735843207822,2.57868055,3452.2,3451.9,0.28997]
[1735843208023,2.28874055,3452.2,3452.0,0.28995]
[1735843208224,2.28874055,3452.2,3451.8,0.8468]
[1735843208517,6.84526944,3452.5,3451.9,0.28997]
[1735843208727,2.27721585,3452.4,3452.3,0.28993]
[1735843210025,40.8,3452.7,3452.6,0.28991]
[1735843210326,3.41582378,3453.1,3452.6,3.2078]
[1735843210529,3.41582378,3453.1,3453.0,0.28987]
[1735843210722,44.21582378,3453.1,3453.0,3.49767]
[1735843211627,40.8,3453.1,3453.0,3.49767]
[1735843213123,40.8,3453.1,3453.0,4.41827]
[1735843220840,40.8,3453.1,3453.0,13.49221921]
[1735843222437,40.8,3453.1,3453.0,13.03271921]
[1735843223940,40.8,3453.1,3453.0,3.95877]
[1735843224743,40.8,3453.1,3453.0,3.49767]
[1735843227949,40.8,3453.1,3453.0,0.28987]
[1735843228440,46.29654055,3453.1,3452.8,0.28989]
[1735843228641,46.29654055,3453.1,3452.6,0.4301]
[1735843228642,0.4592,3453.0,3452.9,0.28988]
[1735843228840,0.4592,3453.0,3452.6,0.4301]
[1735843229041,0.4592,3453.0,3452.8,0.28989]
[1735843229242,0.456,3452.9,3452.8,0.28989]
[1735843230844,41.256,3452.9,3452.8,0.28989]
[1735843233144,40.8,3452.9,3452.8,0.28989]
[1735843236147,41.08988,3452.9,3452.7,0.28989]
[1735843236348,40.8,3452.9,3452.5,3.2078]
[1735843236541,1.174,3452.8,3452.6,0.28991]
[1735843236748,0.4437,3452.7,3452.5,3.2078]
[1735843237052,0.28991,3452.6,3452.5,3.2078]
[1735843237450,0.28994,3452.2,3452.1,12.28174921]
[1735843237642,0.28994,3452.2,3452.1,3.2078]
[1735843237848,0.28994,3452.2,3452.0,0.28995]
[1735843238047,41.98635,3452.1,3451.9,0.28996]
[1735843238557,0.28997,3451.8,3451.7,9.07394921]
[1735843238847,5.78651055,3451.8,3451.7,9.07394921]
[1735843239043,0.29002,3451.2,3451.1,9.07394921]
[1735843239243,43.37876055,3451.2,3451.1,9.07394921]
[1735843239454,48.37876055,3451.2,3451.1,9.07394921]
[1735843239657,44.70346055,3451.2,3451.1,9.07394921]
[1735843240848,0.29004,3451.1,3451.0,0.29004]
[1735843241550,41.09004,3451.1,3451.0,0.29004]
[1735843242048,0.29005,3450.9,3450.8,0.29005]
[1735843242254,0.29007,3450.8,3450.7,0.29006]
[1735843242646,5.49654055,3450.9,3450.8,0.29006]
[1735843242953,2.28874055,3450.9,3450.8,0.29006]
[1735843244554,40.8,3451.1,3451.0,0.29004]
[1735843245855,40.8,3451.1,3451.0,3.49784]
[1735843246250,3.2078,3451.7,3451.6,0.28999]
[1735843246648,44.0078,3451.7,3451.6,0.28999]
[1735843248559,40.8,3451.7,3451.6,0.28999]
[1735843250460,0.28999,3451.6,3451.3,0.29001]
[1735843250655,2.28874055,3451.4,3451.3,0.29001]
[1735843252050,43.08874055,3451.7,3451.5,0.28999]
[1735843252254,43.08874055,3451.7,3451.2,3.2078]
[1735843252862,43.08874055,3451.7,3451.6,0.28999]
[1735843254056,40.8,3451.7,3451.6,0.28999]
[1735843254759,43.08874055,3451.7,3451.6,0.28999]
[1735843257163,43.08874055,3451.7,3451.4,0.29]
[1735843257463,0.29,3451.5,3451.3,0.29001]
[1735843257663,2.28874055,3451.4,3451.2,3.2078]
[1735843258053,2.28874055,3451.4,3451.3,0.29002]
[1735843258456,43.08874055,3451.4,3451.3,0.29002]
[1735843259262,40.8,3451.4,3451.3,0.29002]
[1735843260254,43.08874055,3451.4,3451.2,3.2078]
[1735843260459,43.37875055,3451.4,3451.2,3.49782]
[1735843261263,0.29002,3451.3,3451.2,3.2078]
[1735843261660,0.73062,3451.3,3451.2,3.2078]
[1735843261870,0.4406,3451.3,3450.6,4.5618]
[1735843262072,2.57881055,3450.7,3450.6,4.1092]
[1735843262370,2.57881055,3450.7,3450.6,3.6562]
[1735843262561,43.37881055,3450.7,3450.6,3.6562]
[1735843262758,0.29008,3450.5,3450.2,6.53586471]
[1735843262968,2.28874055,3450.3,3450.2,5.93247471]
[1735843263866,2.28874055,3450.3,3450.2,5.64236471]
[1735843264177,2.28874055,3450.3,3450.2,5.93247471]
[1735843265070,2.28874055,3450.6,3450.4,0.29009]
[1735843265370,40.8,3450.7,3450.6,0.29007]
[1735843266263,41.09007,3450.7,3450.2,5.64236471]
[1735843266463,2.28874055,3450.4,3450.3,0.2901]
[1735843266770,43.37881055,3450.7,3450.3,0.4665]
[1735843266965,43.08874055,3450.7,3450.6,0.29007]
[1735843267270,43.37881055,3450.7,3450.6,0.29007]
[1735843268375,43.08874055,3450.7,3450.6,0.29007]
[1735843268572,0.29008,3450.6,3450.5,0.29008]
[1735843269072,43.37881055,3450.7,3450.6,0.29007]
[1735843270569,40.8,3450.7,3450.6,0.29007]
[1735843270970,6.23746055,3451.3,3450.9,0.29005]
[1735843270971,2.57879055,3451.0,3450.9,0.29005]
[1735843271370,43.08874055,3451.0,3450.7,0.4671]
[1735843271577,43.37879055,3451.0,3450.9,0.29005]
[1735843271769,0.29005,3450.9,3450.8,0.29005]
[1735843271970,43.37879055,3451.0,3450.9,0.29005]
[1735843272174,0.29005,3450.9,3450.8,0.29006]
[1735843272471,0.29005,3450.9,3450.8,0.29005]
[1735843272873,0.29005,3450.9,3450.7,0.4671]
[1735843273172,43.08874055,3451.0,3450.7,0.4671]
[1735843273478,43.08874055,3451.0,3450.9,0.29005]
[1735843274574,43.37879055,3451.0,3450.9,0.29005]
[1735843274768,43.08874055,3451.0,3450.9,0.29005]
[1735843275470,43.08874055,3451.0,3450.8,0.4543]
[1735843275675,0.29005,3450.9,3450.8,0.4543]
[1735843275875,43.37879055,3451.0,3450.8,0.74435]
[1735843276178,0.29005,3450.9,3450.8,0.29006]
[1735843276371,0.29005,3450.9,3450.7,0.29006]
[1735843277277,0.29006,3450.8,3450.6,0.74387]
[1735843277481,2.28874055,3450.7,3450.6,0.74387]
[1735843277882,40.8,3450.7,3450.6,0.74387]
[1735843281679,2.28874055,3451.6,3450.6,5.4538]
[1735843281882,6.62362378,3451.8,3451.7,0.28998]
[1735843282180,3.2078,3451.8,3451.7,0.28998]
[1735843282382,3.41582378,3452.1,3452.0,0.28996]
[1735843282683,44.21582378,3452.1,3452.0,0.28996]
[1735843282879,44.21582378,3452.1,3452.0,2.57870055]
[1735843283682,44.21582378,3452.1,3452.0,7.57870055]
[1735843284087,3.41582378,3453.0,3452.0,7.28874055]
[1735843284286,3.41582378,3453.0,3452.9,0.28988]
[1735843284485,44.21582378,3453.0,3452.9,0.28988]
[1735843285693,40.8,3453.0,3452.9,0.28988]
[1735843287300,41.08988,3453.0,3452.7,0.73319]
[1735843287498,41.08988,3453.0,3452.7,0.7332]
[1735843287795,40.8,3453.0,3452.8,0.28989]
[1735843287995,40.8,3453.0,3452.7,0.4433]
[1735843288196,40.8,3453.0,3452.7,0.7332]
[1735843288197,41.08988,3453.0,3452.7,0.7332]
[1735843288797,40.8,3453.0,3452.7,0.4433]
[1735843288998,40.8,3453.0,3452.8,0.28988]
[1735843289399,2.57861055,3453.1,3452.8,0.28988]
[1735843289899,2.57861055,3453.1,3452.8,0.28989]
[1735843289900,40.8,3452.9,3452.8,0.28989]
[1735843290293,40.8,3452.9,3452.7,0.4433]
[1735843290494,41.08988,3452.9,3452.7,0.7332]
[1735843290695,40.8,3452.9,3452.7,0.4433]
[1735843290903,41.08989,3452.9,3452.7,0.4433]
[1735843291100,40.8,3452.9,3452.7,0.73319]
[1735843291495,40.8,3452.9,3452.8,0.28989]
[1735843291695,40.8,3452.9,3452.7,0.73319]
[1735843292200,40.8,3452.9,3452.8,0.28989]
[1735843294103,40.8,3452.9,3452.7,0.4433]
[1735843294303,40.8,3452.9,3452.7,0.73319]
[1735843295101,40.8,3452.9,3452.8,0.28989]
[1735843295301,40.8,3452.9,3452.7,0.4433]
[1735843296198,40.8,3452.9,3452.8,0.28989]
[1735843297001,40.8,3452.9,3452.8,3.49769]
[1735843299811,40.8,3452.9,3452.8,0.28989]
[1735843300212,40.8,3452.9,3452.8,3.49769]
[1735843311722,3.2078,3453.6,3453.5,0.28983]
[1735843312115,0.28983,3453.5,3453.3,0.28985]
[1735843312307,44.29763,3453.6,3453.4,0.28983]
[1735843312513,44.0078,3453.6,3453.4,0.28983]
[1735843312720,44.29763,3453.6,3453.4,0.28983]
[1735843312923,0.28983,3453.5,3453.3,0.28984]
[1735843313619,2.57859055,3453.4,3453.1,0.28986]
[1735843313924,0.4223,3453.3,3453.2,0.28985]
[1735843316113,2.28874055,3453.4,3452.8,3.49769]
[1735843316317,44.0078,3453.6,3452.8,3.2078]
[1735843316520,44.0078,3453.6,3453.5,0.28983]
[1735843320824,40.8,3453.6,3453.5,0.28983]
[1735843327622,1.2983,3454.2,3453.5,0.72459]
[1735843327818,0.28979,3454.1,3453.9,0.2898]
[1735843328019,0.28979,3454.1,3453.5,0.72459]
[1735843328020,2.57854055,3454.0,3453.5,0.72459]
[1735843328220,2.57854055,3454.0,3453.9,0.2898]
[1735843328221,2.28874055,3454.0,3453.9,0.2898]
[1735843329225,1.2983,3454.2,3454.1,0.28978]
[1735843330426,0.8619,3454.2,3454.1,0.28978]
[1735843330723,3.13937447,3454.2,3454.1,0.28978]
[1735843332320,0.8619,3454.2,3454.1,0.28978]
[1735843333721,3.13937447,3454.2,3454.1,0.28978]
[1735843335130,0.8619,3454.2,3454.1,0.28978]
[1735843335630,1.15167,3454.2,3454.1,0.28978]
[1735843336233,1.15167,3454.2,3453.8,0.72451]
[1735843336234,0.8619,3454.2,3453.7,4.9606942]
[1735843336430,0.28981,3453.7,3453.6,4.5249942]
[1735843336630,2.57855055,3453.7,3453.6,4.5249942]
[1735843336832,43.37855055,3453.7,3453.6,4.5249942]
[1735843337727,0.28982,3453.6,3453.5,0.28983]
[1735843337928,1.18272,3453.6,3453.5,0.28983]
[1735843338735,1.18272,3453.6,3453.4,0.28983]
[1735843339034,0.8929,3453.6,3453.5,0.28983]
[1735843341238,44.21582378,3453.7,3453.2,0.72463]
[1735843341239,44.21582378,3453.7,3453.6,0.28982]
[1735843341429,43.07719521,3453.7,3453.6,0.28982]
[1735843341633,45.36593576,3453.7,3453.2,4.5249942]
[1735843341939,0.28983,3453.6,3453.4,0.28984]
[1735843342539,2.56702521,3453.6,3453.4,0.28984]
[1735843342934,3.49764,3453.5,3453.3,0.28984]
[1735843343243,3.49764,3453.5,3453.1,4.5249942]
[1735843343436,3.49764,3453.5,3453.4,0.28984]
[1735843343834,3.2078,3453.5,3453.4,0.28984]
[1735843344036,5.48499521,3453.5,3453.4,0.28984]
[1735843347049,3.2078,3453.5,3453.4,0.28984]
[1735843347543,3.49763,3453.5,3453.4,0.28984]
[1735843347746,3.2078,3453.5,3453.4,0.28984]
[1735843348336,5.48499521,3453.5,3453.4,0.28984]
[1735843349141,2.27719521,3453.5,3453.4,0.28984]
[1735843351343,41.08982,3453.7,3453.4,7.05928035]
[1735843351544,40.8,3453.7,3453.6,0.28982]
[1735843351771,40.8,3453.7,3453.4,6.76944035]
[1735843351936,40.8,3453.7,3453.5,0.28983]
[1735843352142,40.8,3453.7,3453.6,0.28982]
[1735843352645,43.07719521,3453.7,3453.6,0.28982]
[1735843353846,43.07719521,3453.7,3453.6,0.73452]
[1735843355142,41.08981,3453.7,3453.6,0.73452]
[1735843355342,41.08981,3453.7,3453.6,0.4447]
[1735843355548,41.08981,3453.7,3453.5,4.54106244]
[1735843355745,41.51491,3453.7,3453.6,0.28982]
[1735843356050,41.2251,3453.7,3453.6,0.28982]
[1735843356254,41.51491,3453.7,3453.6,0.28982]
[1735843357462,41.2251,3453.7,3453.6,0.28982]